fUSD/lending_fUSD_20260620
["ID","MTS","AMOUNT","RATE_DAILY","PERIOD"]
[425799434,1781904641000,-3304.85,0.00024174,2]
[425799435,1781904641000,-1179.47,0.00024174,2]
[425799437,1781904641000,-47321.35,0.00024174,2]
[425799433,1781904641000,-249.44,0.0002411,2]
[425799431,1781904641000,-185.0,0.00024,2]
[425799436,1781904641000,-2458.39,0.00024174,2]
[425799439,1781904641000,-195.4,0.00024324,2]
[425799440,1781904641000,-150.0,0.00024333,2]
[425799449,1781904641000,-7274.57019634,0.00024981,2]
[425799443,1781904641000,-2405.55389863,0.00024528,2]
[425799444,1781904641000,-1000.0,0.00024658,2]
[425799446,1781904641000,-3001.68012684,0.00024792,2]
[425799445,1781904641000,-155.6,0.00024658,2]
[425799447,1781904641000,-395.42,0.00024869,7]
[425799450,1781904641000,-479.67889335,0.00025,2]
[425799451,1781904641000,-645.18698857,0.00025,2]
[425799448,1781904641000,-500.0,0.00024959,2]
[425799460,1781904641000,-189.0,0.00025146,10]
[425799461,1781904641000,-5602.527,0.00025375,2]
[425799438,1781904641000,-428.22,0.00024174,2]
[425799441,1781904641000,-200.0,0.00024528,2]
[425799432,1781904641000,-410.09,0.0002411,2]
[425799411,1781904641000,-1926.41,0.00023246,7]
[425799428,1781904641000,-639.0,0.00024,2]
[425799405,1781904641000,-164.0,0.00023,2]
[425799406,1781904641000,-639.0,0.00023,2]
[425799407,1781904641000,-598.0,0.00023,2]
[425799409,1781904641000,-185.0,0.00023,2]
[425799408,1781904641000,-261.0,0.00023,2]
[425799410,1781904641000,-688.84969968,0.00023162,2]
[425799414,1781904641000,-170.71,0.00023346,2]
[425799415,1781904641000,-641.89,0.00023413,2]
[425799412,1781904641000,-329.02,0.00023259,2]
[425799417,1781904641000,-151.0,0.00023432,2]
[425799416,1781904641000,-200.0,0.00023432,2]
[425799453,1781904641000,-263.0,0.00025,2]
[425799413,1781904641000,-250.0,0.00023288,2]
[425799419,1781904641000,-7274.57019634,0.00023512,2]
[425799418,1781904641000,-2236.95670847,0.00023432,2]
[425799422,1781904641000,-203.642929,0.00023846,14]
[425799423,1781904641000,-170.356592,0.00023846,14]
[425799421,1781904641000,-270.483074,0.00023691,14]
[425799420,1781904641000,-3001.68012684,0.00023514,2]
[425799425,1781904641000,-151.0,0.0002398,2]
[425799426,1781904641000,-2319.72410669,0.0002398,2]
[425799427,1781904641000,-473.0,0.00024,2]
[425799424,1781904641000,-200.0,0.0002398,2]
[425799429,1781904641000,-598.0,0.00024,2]
[425799456,1781904641000,-200.0,0.00025076,2]
[425799452,1781904641000,-598.0,0.00025,2]
[425799458,1781904641000,-2494.55939288,0.00025076,2]
[425799482,1781904641000,-1700.0,0.000259,9]
[425799487,1781904641000,-200.0,0.00026172,2]
[425799488,1781904641000,-277.81817141,0.00026172,2]
[425799491,1781904641000,-7274.57019634,0.00026451,2]
[425799501,1781904641000,-1148.61238259,0.00026643,2]
[425799490,1781904641000,-195.4,0.00026296,2]
[425799502,1781904641000,-894.37889902,0.00026643,2]
[425799492,1781904641000,-459.573526,0.00026493,2]
[425799495,1781904641000,-381.740928,0.00026497,2]
[425799497,1781904641000,-1030.0,0.00026643,2]
[425799494,1781904641000,-426.53716,0.00026496,2]
[425799496,1781904641000,-453.545408,0.00026497,2]
[425799500,1781904641000,-209.40437684,0.00026643,2]
[425799498,1781904641000,-1068.11,0.00026643,2]
[425799499,1781904641000,-1107.63007,0.00026643,2]
[425799503,1781904641000,-151.0,0.00026643,2]
[425799505,1781904641000,-155.30723179,0.00026643,2]
[425799509,1781904641000,-1328.27659266,0.00026643,2]
[425799504,1781904641000,-158.27996192,0.00026643,2]
[425799506,1781904641000,-1191.11104074,0.00026643,2]
[425799507,1781904641000,-1235.18214925,0.00026643,2]
[425799508,1781904641000,-1280.88388877,0.00026643,2]
[425799463,1781904641000,-500.0,0.00025603,2]
[425799481,1781904641000,-24794.23,0.00025786,2]
[425799489,1781904641000,-2682.57183977,0.00026172,2]
[425799493,1781904641000,-182.0,0.00026496,5]
[425799484,1781904641000,-178.17,0.00026027,7]
[425799455,1781904641000,-202.16384453,0.00025,2]
[425799483,1781904641000,-292.92,0.00026027,7]
[425799464,1781904641000,-500.0,0.00025603,2]
[425799459,1781904641000,-381.0,0.000251,7]
[425799457,1781904641000,-151.0,0.00025076,2]
[425799454,1781904641000,-211.9,0.00025,2]
[425799462,1781904641000,-206.0,0.00025416,2]
[425799467,1781904641000,-150.0,0.00025603,2]
[425799477,1781904641000,-2458.39,0.00025786,2]
[425799466,1781904641000,-499.38774404,0.00025603,2]
[425799474,1781904641000,-641.89,0.00025754,2]
[425799468,1781904641000,-200.0,0.00025624,2]
[425799465,1781904641000,-500.0,0.00025603,2]
[425799469,1781904641000,-151.0,0.00025624,2]
[425799486,1781904641000,-3001.68012684,0.00026071,2]
[425799485,1781904641000,-564.68,0.0002605,2]
[425799480,1781904641000,-9999.99,0.00025786,2]
[425799478,1781904641000,-47321.35,0.00025786,2]
[425799475,1781904641000,-3304.85,0.00025786,2]
[425799479,1781904641000,-428.22,0.00025786,2]
[425799473,1781904641000,-207.58,0.00025742,2]
[425799471,1781904641000,-249.0,0.00025672,2]
[425799470,1781904641000,-2586.85809042,0.00025624,2]
[425799472,1781904641000,-170.71,0.00025681,2]
[425799476,1781904641000,-1179.47,0.00025786,2]
[425799559,1781904642000,-151.0,0.00026698,2]
[425799550,1781904642000,-500.0,0.00026643,2]
[425799548,1781904642000,-500.0,0.00026643,2]
[425799549,1781904642000,-152.0,0.00026643,2]
[425799547,1781904642000,-152.0,0.00026643,2]
[425799546,1781904642000,-500.0,0.00026643,2]
[425799544,1781904642000,-721.12765534,0.00026643,2]
[425799542,1781904642000,-152.0,0.00026643,2]
[425799543,1781904642000,-500.0,0.00026643,2]
[425799539,1781904642000,-152.0,0.00026643,2]
[425799541,1781904642000,-500.0,0.00026643,2]
[425799545,1781904642000,-152.0,0.00026643,2]
[425799558,1781904642000,-894.37889902,0.00026698,2]
[425799566,1781904642000,-894.37889902,0.00026863,2]
[425799560,1781904642000,-200.0,0.0002672,2]
[425799554,1781904642000,-500.0,0.00026643,2]
[425799551,1781904642000,-500.0,0.00026643,2]
[425799555,1781904642000,-500.0,0.00026643,2]
[425799552,1781904642000,-500.0,0.00026643,2]
[425799562,1781904642000,-894.37889902,0.00026753,2]
[425799557,1781904642000,-926.22598665,0.00026643,2]
[425799556,1781904642000,-500.0,0.00026643,2]
[425799563,1781904642000,-151.0,0.00026753,2]
[425799564,1781904642000,-894.37889902,0.00026808,2]
[425799565,1781904642000,-151.0,0.00026808,2]
[425799538,1781904642000,-500.0,0.00026643,2]
[425799561,1781904642000,-2781.82699784,0.0002672,2]
[425799529,1781904642000,-152.0,0.00026643,2]
[425799514,1781904642000,-1536.04360648,0.00026643,2]
[425799537,1781904642000,-152.0,0.00026643,2]
[425799567,1781904642000,-151.0,0.00026863,2]
[425799510,1781904642000,-1377.42282658,0.00026643,2]
[425799513,1781904642000,-1481.2378076,0.00026643,2]
[425799511,1781904642000,-693.39197629,0.00026643,2]
[425799512,1781904642000,-1428.38747117,0.00026643,2]
[425799516,1781904642000,-1592.87721992,0.00026643,2]
[425799515,1781904642000,-174.61919141,0.00026643,2]
[425799526,1781904642000,-1910.18787185,0.00026643,2]
[425799517,1781904642000,-1651.81367706,0.00026643,2]
[425799518,1781904642000,-1712.93078311,0.00026643,2]
[425799527,1781904642000,-209.40437684,0.00026643,2]
[425799519,1781904642000,-1776.30922209,0.00026643,2]
[425799536,1781904642000,-848.46538731,0.00026643,2]
[425799520,1781904642000,-1842.0326633,0.00026643,2]
[425799525,1781904642000,-9552.16786547,0.00026643,2]
[425799524,1781904642000,-209.40437684,0.00026643,2]
[425799522,1781904642000,-152.0,0.00026643,2]
[425799521,1781904642000,-209.40437684,0.00026643,2]
[425799530,1781904642000,-1980.8648231,0.00026643,2]
[425799528,1781904642000,-578.20924308,0.00026643,2]
[425799532,1781904642000,-152.0,0.00026643,2]
[425799531,1781904642000,-2054.15682156,0.00026643,2]
[425799534,1781904642000,-209.40437684,0.00026643,2]
[425799533,1781904642000,-152.0,0.00026643,2]
[425799535,1781904642000,-152.0,0.00026643,2]
[425799540,1781904642000,-151.0,0.00026643,2]
[425799523,1781904642000,-151.0,0.00026643,2]
[425799572,1781904642000,-894.37889902,0.00026973,2]
[425799585,1781904642000,-155.30723188,0.00027191,2]
[425799574,1781904642000,-894.37889902,0.00027028,2]
[425799603,1781904642000,-10115.4419742,0.000272,2]
[425799606,1781904642000,-2520.9068457,0.000272,2]
[425799605,1781904642000,-336.35224892,0.000272,2]
[425799607,1781904642000,-200.0,0.00027268,2]
[425799610,1781904642000,-184.67822989,0.00027396,2]
[425799612,1781904642000,-1000.0,0.00027396,2]
[425799613,1781904642000,-1500.0,0.00027397,2]
[425799611,1781904642000,-500.0,0.00027396,2]
[425799608,1781904642000,-2884.75459676,0.00027268,2]
[425799609,1781904642000,-3001.68012684,0.00027349,2]
[425799617,1781904642000,-1474.08,0.00027397,2]
[425799615,1781904642000,-1024.99,0.00027397,2]
[425799604,1781904642000,-463.24757507,0.000272,2]
[425799621,1781904642000,-29478.32,0.00027397,10]
[425799620,1781904642000,-300.0,0.00027397,2]
[425799625,1781904642000,-955.76648806,0.000275,2]
[425799614,1781904642000,-692.02606334,0.00027397,2]
[425799622,1781904642000,-316.68844601,0.00027397,2]
[425799616,1781904642000,-1000.0,0.00027397,20]
[425799624,1781904642000,-500.0,0.00027499,7]
[425799618,1781904642000,-3092.81,0.00027397,2]
[425799619,1781904642000,-530.0,0.00027397,2]
[425799627,1781904642000,-662.80076785,0.000275,2]
[425799628,1781904642000,-301.79226071,0.000275,2]
[425799629,1781904642000,-10115.4419742,0.000275,2]
[425799573,1781904642000,-151.0,0.00026973,2]
[425799626,1781904642000,-1314.47837632,0.000275,2]
[425799597,1781904642000,-894.37889908,0.00027193,2]
[425799623,1781904642000,-151.0,0.00027465,2]
[425799599,1781904642000,-955.76648806,0.000272,2]
[425799596,1781904642000,-926.22598665,0.00027191,2]
[425799569,1781904642000,-151.0,0.00026917,2]
[425799568,1781904642000,-700.0,0.000269,9]
[425799571,1781904642000,-151.0,0.00026918,2]
[425799575,1781904642000,-151.0,0.00027028,2]
[425799587,1781904642000,-151.0,0.00027191,2]
[425799590,1781904642000,-217.15233878,0.00027191,2]
[425799588,1781904642000,-490.73396765,0.00027191,2]
[425799589,1781904642000,-181.08010149,0.00027191,2]
[425799578,1781904642000,-894.37889902,0.00027083,2]
[425799581,1781904642000,-500.0,0.00027137,2]
[425799584,1781904642000,-158.27996192,0.00027191,2]
[425799580,1781904642000,-151.0,0.00027083,2]
[425799570,1781904642000,-894.37889902,0.00026918,2]
[425799582,1781904642000,-894.37889902,0.00027138,2]
[425799586,1781904642000,-217.15233878,0.00027191,2]
[425799598,1781904642000,-151.0,0.00027193,2]
[425799594,1781904642000,-848.46538731,0.00027191,2]
[425799595,1781904642000,-151.0,0.00027191,2]
[425799602,1781904642000,-301.79226071,0.000272,2]
[425799592,1781904642000,-217.15233878,0.00027191,2]
[425799593,1781904642000,-217.15233878,0.00027191,2]
[425799591,1781904642000,-9905.59807649,0.00027191,2]
[425799630,1781904642000,-463.24757507,0.000275,2]
[425799583,1781904642000,-151.0,0.00027138,2]
[425799600,1781904642000,-1314.47837632,0.000272,2]
[425799601,1781904642000,-662.80076785,0.000272,2]
[425799656,1781904643000,-10115.4419742,0.000278,2]
[425799655,1781904643000,-301.79226071,0.000278,2]
[425799664,1781904643000,-7274.57019634,0.00027921,2]
[425799658,1781904643000,-336.35224892,0.000278,2]
[425799657,1781904643000,-463.24757507,0.000278,2]
[425799660,1781904643000,-200.0,0.00027816,2]
[425799662,1781904643000,-500.0,0.00027863,2]
[425799667,1781904643000,-217.15233878,0.00028012,2]
[425799665,1781904643000,-196.90033047,0.00027981,2]
[425799666,1781904643000,-461.3175407,0.00028,2]
[425799672,1781904643000,-1314.47837632,0.000281,2]
[425799669,1781904643000,-170.71,0.00028015,2]
[425799661,1781904643000,-2991.49051684,0.00027816,2]
[425799663,1781904643000,-2000.0,0.000279,2]
[425799668,1781904643000,-151.0,0.00028013,2]
[425799671,1781904643000,-955.76648806,0.000281,2]
[425799674,1781904643000,-301.79226071,0.000281,2]
[425799677,1781904643000,-336.35224892,0.000281,2]
[425799673,1781904643000,-662.80076785,0.000281,2]
[425799654,1781904643000,-662.80076785,0.000278,2]
[425799679,1781904643000,-184.22204783,0.0002825,2]
[425799670,1781904643000,-1264.63530618,0.00028093,2]
[425799650,1781904643000,-402.04,0.00027789,2]
[425799640,1781904643000,-225.18697532,0.00027739,2]
[425799651,1781904643000,-150.0,0.00027789,7]
[425799675,1781904643000,-10115.4419742,0.000281,2]
[425799632,1781904643000,-500.0,0.000275,7]
[425799631,1781904643000,-336.35224892,0.000275,2]
[425799633,1781904643000,-2520.9068457,0.000275,2]
[425799634,1781904643000,-306.42404686,0.00027522,2]
[425799636,1781904643000,-2383.7803,0.000277,2]
[425799637,1781904643000,-2000.0,0.000277,2]
[425799638,1781904643000,-223.56380794,0.00027706,14]
[425799639,1781904643000,-158.27996192,0.00027739,2]
[425799635,1781904643000,-274.0,0.00027556,5]
[425799642,1781904643000,-187.78006524,0.00027739,2]
[425799641,1781904643000,-151.0,0.00027739,2]
[425799643,1781904643000,-10272.10520532,0.00027739,2]
[425799644,1781904643000,-225.18697532,0.00027739,2]
[425799647,1781904643000,-848.46538731,0.00027739,2]
[425799646,1781904643000,-225.18697532,0.00027739,2]
[425799645,1781904643000,-225.18697532,0.00027739,2]
[425799649,1781904643000,-926.22598665,0.00027739,2]
[425799648,1781904643000,-151.0,0.00027739,2]
[425799659,1781904643000,-2520.9068457,0.000278,2]
[425799652,1781904643000,-955.76648806,0.000278,2]
[425799653,1781904643000,-1314.47837632,0.000278,2]
[425799676,1781904643000,-463.24757507,0.000281,2]
[425799681,1781904643000,-459.573526,0.0002827,2]
[425799680,1781904643000,-195.4,0.00028267,2]
[425799706,1781904643000,-151.0,0.000283,7]
[425799711,1781904643000,-200.0,0.00028364,2]
[425799708,1781904643000,-151.0,0.000283,7]
[425799712,1781904643000,-500.0,0.00028399,7]
[425799707,1781904643000,-151.0,0.000283,7]
[425799709,1781904643000,-151.0,0.000283,7]
[425799710,1781904643000,-167.26621029,0.000283,2]
[425799714,1781904643000,-1098.48,0.0002851,30]
[425799715,1781904643000,-306.42404686,0.00028522,2]
[425799717,1781904643000,-204.64,0.00028528,2]
[425799703,1781904643000,-463.24757507,0.000283,2]
[425799719,1781904643000,-204.44,0.00028563,7]
[425799724,1781904643000,-204.64,0.00028602,30]
[425799720,1781904643000,-204.64,0.00028565,7]
[425799718,1781904643000,-151.0,0.00028561,2]
[425799721,1781904643000,-10115.4419742,0.000286,2]
[425799723,1781904643000,-204.44,0.000286,30]
[425799726,1781904643000,-3001.68012684,0.00028627,2]
[425799725,1781904643000,-500.0,0.00028605,3]
[425799727,1781904643000,-204.44,0.00028637,2]
[425799678,1781904643000,-2520.9068457,0.000281,2]
[425799728,1781904643000,-204.64,0.00028639,2]
[425799722,1781904643000,-2520.9068457,0.000286,2]
[425799705,1781904643000,-2520.9068457,0.000283,2]
[425799716,1781904643000,-204.44,0.00028526,2]
[425799704,1781904643000,-336.35224892,0.000283,2]
[425799682,1781904643000,-151.0,0.0002827,7]
[425799713,1781904643000,-901.94,0.00028481,30]
[425799683,1781904643000,-151.0,0.0002827,7]
[425799684,1781904643000,-151.0,0.0002827,7]
[425799688,1781904643000,-233.5188934,0.00028287,2]
[425799690,1781904643000,-194.72792766,0.00028287,2]
[425799687,1781904643000,-158.27996192,0.00028287,2]
[425799686,1781904643000,-316.68844601,0.00028275,2]
[425799689,1781904643000,-151.0,0.00028287,2]
[425799691,1781904643000,-10652.17309792,0.00028287,2]
[425799692,1781904643000,-233.5188934,0.00028287,2]
[425799685,1781904643000,-151.0,0.0002827,7]
[425799701,1781904643000,-301.79226071,0.000283,2]
[425799699,1781904643000,-955.76648806,0.000283,2]
[425799698,1781904643000,-1314.47837632,0.000283,2]
[425799702,1781904643000,-10115.4419742,0.000283,2]
[425799697,1781904643000,-926.22598665,0.00028287,2]
[425799693,1781904643000,-233.5188934,0.00028287,2]
[425799696,1781904643000,-151.0,0.00028287,2]
[425799700,1781904643000,-662.80076785,0.000283,2]
[425799695,1781904643000,-848.46538731,0.00028287,2]
[425799694,1781904643000,-233.5188934,0.00028287,2]
[425799766,1781904644000,-3500.0,0.000289,10]
[425799768,1781904644000,-200.0,0.000289,2]
[425799763,1781904644000,-204.64,0.00028898,7]
[425799761,1781904644000,-365.0,0.00028881,5]
[425799756,1781904644000,-901.94,0.00028848,2]
[425799760,1781904644000,-500.0,0.00028879,7]
[425799759,1781904644000,-1098.48,0.00028871,2]
[425799754,1781904644000,-151.0,0.00028835,2]
[425799764,1781904644000,-10115.4419742,0.000289,2]
[425799762,1781904644000,-204.44,0.00028898,7]
[425799765,1781904644000,-200.0,0.000289,2]
[425799778,1781904644000,-639.0,0.00028926,30]
[425799769,1781904644000,-824.0,0.00028904,2]
[425799774,1781904644000,-168.17282495,0.00028924,30]
[425799776,1781904644000,-162.0,0.00028926,30]
[425799775,1781904644000,-153.0,0.00028926,30]
[425799771,1781904644000,-155.0,0.00028923,30]
[425799779,1781904644000,-598.0,0.00028926,30]
[425799777,1781904644000,-154.0,0.00028926,30]
[425799773,1781904644000,-473.0,0.00028924,30]
[425799772,1781904644000,-160.0,0.00028923,30]
[425799755,1781904644000,-926.22598665,0.00028835,2]
[425799767,1781904644000,-2520.9068457,0.000289,2]
[425799753,1781904644000,-848.46538731,0.00028835,2]
[425799731,1781904644000,-204.64,0.00028676,7]
[425799750,1781904644000,-242.15909246,0.00028835,2]
[425799770,1781904644000,-200.0,0.00028912,2]
[425799735,1781904644000,-204.44,0.00028712,30]
[425799736,1781904644000,-204.64,0.00028713,30]
[425799730,1781904644000,-204.44,0.00028674,7]
[425799734,1781904644000,-151.0,0.00028711,7]
[425799729,1781904644000,-901.94,0.00028664,7]
[425799733,1781904644000,-652.23837705,0.00028711,2]
[425799732,1781904644000,-1098.48,0.0002869,7]
[425799737,1781904644000,-204.44,0.00028749,2]
[425799744,1781904644000,-204.64,0.00028824,30]
[425799743,1781904644000,-204.44,0.00028823,30]
[425799752,1781904644000,-242.15909246,0.00028835,2]
[425799747,1781904644000,-151.0,0.00028835,2]
[425799739,1781904644000,-692.02606334,0.00028766,2]
[425799745,1781904644000,-158.27996192,0.00028835,2]
[425799738,1781904644000,-204.64,0.0002875,2]
[425799746,1781904644000,-242.15909246,0.00028835,2]
[425799741,1781904644000,-204.64,0.00028787,7]
[425799742,1781904644000,-2000.0,0.000288,2]
[425799749,1781904644000,-11046.30350254,0.00028835,2]
[425799758,1781904644000,-204.64,0.00028861,2]
[425799751,1781904644000,-242.15909246,0.00028835,2]
[425799757,1781904644000,-204.44,0.0002886,2]
[425799748,1781904644000,-201.93286098,0.00028835,2]
[425799740,1781904644000,-204.44,0.00028786,7]
[425799785,1781904644000,-204.64,0.00028936,30]
[425799788,1781904644000,-1641.0,0.00029,2]
[425799784,1781904644000,-204.44,0.00028935,30]
[425799812,1781904644000,-1098.48,0.00029233,7]
[425799806,1781904644000,-10115.4419742,0.000292,2]
[425799809,1781904644000,-901.94,0.00029216,7]
[425799811,1781904644000,-204.7,0.00029232,7]
[425799814,1781904644000,-12241.4925572,0.00029333,2]
[425799821,1781904644000,-209.40437684,0.00029383,2]
[425799817,1781904644000,-747.80937859,0.00029382,2]
[425799825,1781904644000,-251.11897888,0.00029383,2]
[425799819,1781904644000,-251.11897888,0.00029383,2]
[425799820,1781904644000,-151.0,0.00029383,2]
[425799824,1781904644000,-251.11897888,0.00029383,2]
[425799823,1781904644000,-251.11897888,0.00029383,2]
[425799826,1781904644000,-848.46538731,0.00029383,2]
[425799818,1781904644000,-158.27996192,0.00029383,2]
[425799828,1781904644000,-926.22598665,0.00029383,2]
[425799827,1781904644000,-151.0,0.00029383,2]
[425799830,1781904644000,-901.94,0.000294,2]
[425799829,1781904644000,-7274.57019634,0.00029391,2]
[425799831,1781904644000,-1111.11,0.000294,30]
[425799834,1781904644000,-200.0,0.0002946,2]
[425799833,1781904644000,-461.3175407,0.00029417,2]
[425799832,1781904644000,-1098.48,0.00029413,2]
[425799791,1781904644000,-204.64,0.0002901,7]
[425799810,1781904644000,-204.46,0.00029232,7]
[425799807,1781904644000,-2520.9068457,0.000292,2]
[425799822,1781904644000,-11455.01673214,0.00029383,2]
[425799813,1781904644000,-211.12563067,0.00029275,7]
[425799783,1781904644000,-185.0,0.00028926,30]
[425799808,1781904644000,-589.98842629,0.00029206,14]
[425799782,1781904644000,-261.0,0.00028926,30]
[425799781,1781904644000,-161.0,0.00028926,30]
[425799789,1781904644000,-1111.11,0.00029,30]
[425799790,1781904644000,-204.44,0.00029009,7]
[425799786,1781904644000,-204.44,0.00028972,2]
[425799787,1781904644000,-204.64,0.00028973,2]
[425799792,1781904644000,-901.94,0.00029032,30]
[425799802,1781904644000,-204.64,0.00029158,30]
[425799800,1781904644000,-204.64,0.00029121,7]
[425799794,1781904644000,-204.64,0.00029047,30]
[425799780,1781904644000,-151.0,0.00028926,30]
[425799795,1781904644000,-1098.48,0.00029052,30]
[425799798,1781904644000,-151.0,0.00029109,2]
[425799797,1781904644000,-204.64,0.00029084,2]
[425799796,1781904644000,-204.44,0.00029084,2]
[425799803,1781904644000,-246.8499707,0.00029171,7]
[425799799,1781904644000,-204.44,0.00029121,7]
[425799801,1781904644000,-204.44,0.00029158,30]
[425799816,1781904644000,-599.60298507,0.00029382,2]
[425799804,1781904644000,-204.44,0.00029195,2]
[425799805,1781904644000,-204.64,0.00029195,2]
[425799815,1781904644000,-191.29547668,0.00029381,2]
[425799793,1781904644000,-204.44,0.00029046,30]
[425799871,1781904645000,-151.0,0.00029875,7]
[425799868,1781904645000,-32391.4571797,0.00029875,2]
[425799866,1781904645000,-1000.0,0.00029874,2]
[425799863,1781904645000,-151.0,0.00029815,7]
[425799873,1781904645000,-151.0,0.00029875,7]
[425799865,1781904645000,-337.12021254,0.00029871,2]
[425799867,1781904645000,-1615.2173993,0.00029875,2]
[425799869,1781904645000,-151.0,0.00029875,7]
[425799862,1781904645000,-151.0,0.00029815,7]
[425799874,1781904645000,-151.0,0.00029875,7]
[425799877,1781904645000,-5200.0,0.000299,10]
[425799880,1781904645000,-528.93,0.00029923,7]
[425799878,1781904645000,-3001.68012684,0.00029905,2]
[425799875,1781904645000,-233.8132839,0.00029877,2]
[425799879,1781904645000,-5602.527,0.00029913,2]
[425799881,1781904645000,-1004.01,0.00029923,7]
[425799882,1781904645000,-604.25,0.00029923,30]
[425799883,1781904645000,-727.11,0.00029923,7]
[425799884,1781904645000,-970.29,0.00029923,7]
[425799885,1781904645000,-155.0,0.00029923,30]
[425799886,1781904645000,-160.0,0.00029923,30]
[425799864,1781904645000,-150.0,0.00029863,2]
[425799876,1781904645000,-230.99582644,0.00029899,7]
[425799861,1781904645000,-151.0,0.00029815,7]
[425799835,1781904645000,-500.0,0.00029474,18]
[425799859,1781904645000,-1111.11,0.000298,30]
[425799888,1781904645000,-153.0,0.00029926,30]
[425799836,1781904645000,-10115.4419742,0.000295,2]
[425799837,1781904645000,-2520.9068457,0.000295,2]
[425799838,1781904645000,-164.66478915,0.00029534,2]
[425799839,1781904645000,-163.39156567,0.00029534,2]
[425799843,1781904645000,-236.98765504,0.00029579,2]
[425799851,1781904645000,-244.0,0.00029686,10]
[425799844,1781904645000,-901.94,0.00029584,30]
[425799840,1781904645000,-150.0,0.00029534,2]
[425799845,1781904645000,-1098.48,0.00029594,30]
[425799841,1781904645000,-5686.8600738,0.00029579,2]
[425799860,1781904645000,-151.0,0.00029815,7]
[425799842,1781904645000,-236.98765504,0.00029579,2]
[425799849,1781904645000,-352.09335722,0.00029667,2]
[425799847,1781904645000,-190.0,0.00029639,10]
[425799846,1781904645000,-280.0,0.00029638,10]
[425799850,1781904645000,-55911.7179262,0.00029677,2]
[425799855,1781904645000,-901.94,0.00029768,7]
[425799854,1781904645000,-500.0,0.00029726,2]
[425799853,1781904645000,-4616.3951021,0.00029706,2]
[425799856,1781904645000,-1098.48,0.00029775,7]
[425799852,1781904645000,-2000.0,0.000297,2]
[425799858,1781904645000,-2520.9068457,0.000298,2]
[425799857,1781904645000,-10115.4419742,0.000298,2]
[425799848,1781904645000,-190.522938,0.00029641,10]
[425799893,1781904645000,-151.0,0.00029926,30]
[425799899,1781904645000,-217.15233878,0.00029931,2]
[425799891,1781904645000,-639.0,0.00029926,30]
[425799921,1781904645000,-10115.4419742,0.000301,2]
[425799924,1781904645000,-1000.0,0.00030129,2]
[425799922,1781904645000,-151.0,0.000301,7]
[425799923,1781904645000,-150.0,0.00030129,20]
[425799926,1781904645000,-248.99161423,0.0003013,2]
[425799927,1781904645000,-248.99161423,0.0003013,2]
[425799925,1781904645000,-326491.30334064,0.0003013,7]
[425799928,1781904645000,-151.0,0.0003013,7]
[425799929,1781904645000,-151.0,0.0003013,7]
[425799930,1781904645000,-151.0,0.0003013,7]
[425799931,1781904645000,-151.0,0.0003013,7]
[425799932,1781904645000,-151.0,0.0003013,7]
[425799934,1781904645000,-294.142272,0.0003013,7]
[425799894,1781904645000,-161.0,0.00029926,30]
[425799937,1781904645000,-1098.49,0.00030136,30]
[425799936,1781904645000,-1023.93,0.00030136,30]
[425799935,1781904645000,-692.02606334,0.00030135,2]
[425799939,1781904645000,-353.08526077,0.00030137,2]
[425799938,1781904645000,-901.95,0.00030136,30]
[425799940,1781904645000,-188.63223808,0.00030137,30]
[425799941,1781904645000,-500.0,0.00030137,3]
[425799942,1781904645000,-500.0,0.00030137,3]